bitfinex-derivatives/quotes_SOLF0:USTF0_20260207
["timestamp","ask_amount","ask_price","bid_price","bid_amount"]
[1770478340799,35.21239149,86.583,86.464,162.0744]
[1770478342100,35.35094793,86.612,86.539,10.41]
[1770478342501,35.35094793,86.612,86.5,162.0075]
[1770478342700,35.35094793,86.612,86.494,162.0183]
[1770478342896,35.35094793,86.612,86.495,162.0175]
[1770478343103,35.35094793,86.612,86.496,162.0154]
[1770478343708,35.35094793,86.612,86.545,10.4093]
[1770478344509,35.35094793,86.612,86.497,162.0135]
[1770478344510,35.35094793,86.612,86.556,10.408]
[1770478345296,14.27133871,86.671,86.543,161.9266]
[1770478345500,14.27133871,86.69,86.548,161.9178]
[1770478345805,10.3933,86.679,86.605,10.4021]
[1770478346108,14.27133871,86.691,86.538,20.8204]
[1770478346308,14.27133871,86.687,86.538,20.8204]
[1770478346511,34.75,86.685,86.538,20.8204]
[1770478346699,34.75,86.684,86.538,20.8204]
[1770478347406,26.5210068,86.668,86.543,161.9273]
[1770478348910,26.51695968,86.661,86.58,10.4051]
[1770478349205,26.51695968,86.661,86.515,10.55087697]
[1770478349508,14.27133871,86.701,86.529,10.55087697]
[1770478349700,26.52417913,86.678,86.62,10.4002]
[1770478350900,26.52417913,86.678,86.608,10.4017]
[1770478351512,26.52417913,86.678,86.531,13.95605179]
[1770478351513,26.52417913,86.678,86.577,161.8625]
[1770478351704,14.27133871,86.747,86.597,8.99909157]
[1770478351904,14.27133871,86.756,86.597,8.99909157]
[1770478352111,14.27133871,86.757,86.64,8.99909157]
[1770478352310,14.27133871,86.761,86.64,8.99909157]
[1770478352499,14.27133871,86.761,86.579,31.36137697]
[1770478352500,14.27133871,86.783,86.644,161.7375]
[1770478352706,14.21911448,86.809,86.689,8.79428248]
[1770478352908,124.0,86.83,86.689,8.79428248]
[1770478353204,2.00617996,86.803,86.699,10.3909]
[1770478353406,2.00617996,86.803,86.7,8.79428248]
[1770478353604,18.49679332,86.802,86.7,8.79428248]
[1770478353805,18.49679332,86.802,86.682,8.8754929]
[1770478354212,18.49679332,86.781,86.667,8.8754929]
[1770478354712,18.49679332,86.747,86.64,8.8541818]
[1770478355307,18.49679332,86.741,86.643,8.8541818]
[1770478355604,18.49679332,86.741,86.647,8.93333707]
[1770478355808,18.49679332,86.741,86.675,19.32693707]
[1770478356013,18.49679332,86.741,86.676,9.02454118]
[1770478356410,18.49679332,86.741,86.679,10.3932]
[1770478356616,18.49679332,86.741,86.676,9.02454118]
[1770478356806,18.49679332,86.741,86.63,9.11882295]
[1770478357108,18.49679332,86.741,86.663,10.3951]
[1770478357313,18.49679332,86.741,86.641,9.11882295]
[1770478358112,18.49679332,86.741,86.655,10.3961]
[1770478358517,18.49679332,86.741,86.641,9.11882295]
[1770478359017,21.88748925,86.739,86.643,9.16315904]
[1770478359826,21.88748925,86.739,86.649,9.19715324]
[1770478360520,21.88748925,86.739,86.672,9.19715324]
[1770478360709,21.88748925,86.739,86.651,9.20474176]
[1770478361521,21.88748925,86.734,86.651,19.60134176]
[1770478363018,21.88748925,86.734,86.662,10.3953]
[1770478365017,21.88748925,86.731,86.652,9.29606624]
[1770478366123,21.88748925,86.724,86.655,10.3961]
[1770478366718,21.88748925,86.724,86.659,10.3956]
[1770478367318,21.88748925,86.724,86.672,10.3941]
[1770478367518,21.88748925,86.724,86.656,9.33952909]
[1770478368116,21.88748925,86.724,86.62,62.0]
[1770478368117,21.88748925,86.758,86.672,9.37045775]
[1770478368621,21.88748925,86.758,86.691,9.32591152]
[1770478369123,21.88748925,86.758,86.62,62.0]
[1770478369124,21.88748925,86.799,86.735,10.3865]
[1770478369320,21.88748925,86.799,86.635,161.7548]
[1770478369321,21.88748925,86.799,86.736,9.32591152]
[1770478369723,21.88748925,86.799,86.745,10.3852]
[1770478369920,21.88748925,86.799,86.736,9.32591152]
[1770478370328,21.88748925,86.799,86.718,9.35607798]
[1770478371124,21.88748925,86.784,86.718,9.35607798]
[1770478372322,21.88748925,86.784,86.7,8.95913211]
[1770478373726,21.88748925,86.781,86.708,10.3897]
[1770478374131,21.88748925,86.778,86.708,10.3897]
[1770478376032,21.88748925,86.778,86.7,8.95913211]
[1770478376033,21.88748925,86.778,86.715,10.3889]
[1770478376629,21.88748925,86.776,86.692,9.05021051]
[1770478376825,21.88748925,86.776,86.675,9.05021051]
[1770478377230,21.88748925,86.746,86.677,10.3935]
[1770478377432,21.88748925,86.746,86.61,19.44371051]
[1770478377733,2.00574057,86.823,86.61,19.44371051]
[1770478377734,21.88748925,86.724,86.61,19.44371051]
[1770478378323,21.88748925,86.722,86.61,19.44371051]
[1770478379526,21.88748925,86.722,86.66,10.3954]
[1770478380330,21.88748925,86.722,86.622,161.7783]
[1770478380536,21.88748925,86.741,86.624,161.7748]
[1770478380736,21.88748925,86.741,86.637,161.7515]
[1770478380936,21.88748925,86.741,86.628,161.7684]
[1770478381234,21.88748925,86.741,86.611,161.8]
[1770478381431,21.88748925,86.741,86.615,20.15636105]
[1770478381733,161.379,86.838,86.615,20.15636105]
[1770478381734,21.88748925,86.739,86.615,20.15636105]
[1770478382038,21.88748925,86.733,86.615,20.15636105]
[1770478382425,21.88748925,86.695,86.615,30.55716105]
[1770478382830,21.88748925,86.695,86.615,20.15636105]
[1770478383731,21.88748925,86.693,86.616,19.98862911]
[1770478384438,21.88748925,86.743,86.616,19.98862911]
[1770478384634,21.88748925,86.743,86.522,10.28986553]
[1770478384635,21.88748925,86.743,86.641,19.94453073]
[1770478386537,21.36158977,86.731,86.641,19.94453073]
[1770478387141,21.36158977,86.731,86.656,10.3959]
[1770478387337,21.36158977,86.731,86.657,20.82298796]
[1770478388231,21.36158977,86.786,86.657,20.82298796]
[1770478388431,21.36158977,86.782,86.707,20.84811385]
[1770478389238,21.36158977,86.782,86.735,10.3865]
[1770478389734,21.36158977,86.782,86.707,20.84811385]
[1770478389930,21.36158977,86.782,86.722,10.388]
[1770478390132,21.36158977,86.782,86.707,20.84811385]
[1770478390636,21.36158977,86.782,86.72,20.24198031]
[1770478391030,23.01538171,86.804,86.72,20.24198031]
[1770478391228,23.01538171,86.798,86.724,10.3878]
[1770478391838,23.01538171,86.841,86.763,20.26529711]
[1770478392434,23.01538171,86.838,86.763,20.26529711]
[1770478393030,23.01538171,86.838,86.706,20.26471423]
[1770478393234,23.01538171,86.838,86.733,20.26471423]
[1770478393637,23.01538171,86.838,86.775,10.3817]
[1770478393844,23.01538171,86.838,86.776,20.2874854]
[1770478394140,23.01538171,86.838,86.768,10.3825]
[1770478394435,23.01538171,86.838,86.757,20.2874854]
[1770478395043,23.01538171,86.838,86.739,10.386]
[1770478395436,23.01538171,86.838,86.737,21.21650604]
[1770478395639,23.01538171,86.838,86.667,10.39479625]
[1770478395640,23.01538171,86.803,86.716,21.2392466]
[1770478395948,23.01538171,86.803,86.659,21.2392466]
[1770478396338,23.01538171,86.797,86.694,10.3914]
[1770478396536,23.01538171,86.797,86.695,21.2392466]
[1770478396942,2.00493745,86.853,86.748,161.5433]
[1770478397139,21.13374395,86.903,86.698,161.6368]
[1770478397140,23.01538171,86.878,86.723,10.39479625]
[1770478397340,23.01538171,86.878,86.767,161.508]
[1770478397537,23.01538171,86.878,86.748,161.5439]
[1770478397736,23.01538171,86.878,86.749,21.22344883]
[1770478398144,23.01538171,86.878,86.765,21.22344883]
[1770478399337,2.00442933,86.893,86.799,19.88200038]
[1770478399547,2.00442933,86.893,86.732,161.5735]
[1770478399548,23.01538171,86.939,86.82,19.90590268]
[1770478399841,23.01538171,86.939,86.751,161.5392]
[1770478399842,23.01538171,86.939,86.877,19.90298142]
[1770478400151,23.01538171,86.96,86.877,19.90298142]
[1770478400348,23.01538171,86.96,86.881,10.369]
[1770478400537,23.01538171,86.96,86.822,19.92660918]
[1770478400941,23.01538171,86.958,86.847,20.14744976]
[1770478401150,310.05923212,86.991,86.847,20.14744976]
[1770478401151,23.01538171,86.953,86.847,20.14744976]
[1770478401448,23.01538171,86.906,86.793,20.17080613]
[1770478401840,23.01538171,86.906,86.803,20.16806396]
[1770478402043,23.01538171,86.906,86.752,161.5374]
[1770478402044,23.01538171,86.953,86.811,20.16806396]
[1770478402243,310.05923212,86.991,86.752,161.5374]
[1770478402244,23.01538171,86.977,86.844,20.16806396]
[1770478402545,23.01538171,86.963,86.844,20.16806396]
[1770478402752,23.01538171,86.96,86.865,22.84948103]
[1770478403144,23.01538171,86.96,86.866,22.84948103]
[1770478403346,23.01538171,86.98,86.866,22.84948103]
[1770478403747,23.01538171,86.98,86.889,22.84948103]
[1770478403945,23.01538171,86.98,86.866,22.84948103]
[1770478404144,10.3599,86.958,86.866,22.84948103]
[1770478404352,23.01538171,86.957,86.866,22.84948103]
[1770478404550,23.01538171,86.957,86.804,22.84948103]
[1770478404755,23.01538171,86.955,86.842,10.3736]
[1770478404952,23.01538171,86.955,86.793,22.84948103]
[1770478405147,23.01538171,86.955,86.801,161.4451]
[1770478405347,23.01538171,86.953,86.835,22.84948103]
[1770478405846,23.01538171,86.953,86.857,22.84948103]
[1770478407149,23.01538171,86.953,86.759,20.7674]
[1770478407150,23.01538171,86.953,86.832,22.84948103]
[1770478407356,2.00220357,86.994,86.811,22.84948103]
[1770478407357,23.01538171,86.946,86.811,22.84948103]
[1770478407652,23.01538171,86.907,86.76,22.84948103]
[1770478407855,23.01538171,86.907,86.79,10.3799]
[1770478408351,23.01538171,86.907,86.803,10.3783]
[1770478408549,23.01538171,86.907,86.785,22.84948103]
[1770478408858,23.01538171,86.889,86.785,22.84948103]
[1770478409853,23.01538171,86.887,86.785,22.84948103]
[1770478411252,23.01538171,86.88,86.785,22.84948103]
[1770478411843,23.01538171,86.88,86.765,10.3828]
[1770478411844,23.01538171,86.878,86.76,22.84948103]
[1770478412448,23.01538171,86.868,86.76,22.84948103]
[1770478413254,23.01538171,86.865,86.764,22.84948103]
[1770478414047,23.01538171,86.851,86.764,22.84948103]
[1770478414656,23.01538171,86.849,86.744,22.84948103]
[1770478415156,23.01538171,86.849,86.683,22.84948103]
[1770478415748,23.01538171,86.828,86.722,22.84948103]
[1770478416256,21.50515167,86.81,86.722,22.84948103]
[1770478416451,21.50515167,86.831,86.722,22.84948103]
[1770478416963,21.50515167,86.829,86.722,22.84948103]
[1770478417860,21.50515167,86.822,86.725,22.29519779]
[1770478418859,21.50515167,86.818,86.734,22.29519779]
[1770478419253,21.50515167,86.816,86.734,22.29519779]
[1770478420353,10.3766,86.818,86.734,22.29519779]
[1770478420655,175.34843167,86.906,86.65,161.28]
[1770478420656,161.2962,86.882,86.767,22.29519779]
[1770478420857,21.50515167,86.881,86.767,22.29519779]
[1770478421360,21.50515167,86.828,86.767,22.29519779]
[1770478421856,10.3758,86.826,86.767,22.29519779]
[1770478422156,21.50515167,86.826,86.767,22.29519779]
[1770478423254,10.3744,86.837,86.696,20.7824]
[1770478423255,21.50515167,86.822,86.746,22.29519779]
[1770478423650,10.3727,86.851,86.746,22.29519779]
[1770478423855,21.50515167,86.864,86.754,22.29519779]
[1770478424049,21.50515167,86.909,86.761,22.29519779]
[1770478424250,21.50515167,86.876,86.804,22.29519779]
[1770478424860,10.371,86.866,86.804,22.29519779]
[1770478425059,21.50515167,86.927,86.804,22.29519779]
[1770478425653,21.50515167,86.927,86.827,22.29519779]
[1770478425654,10.3641,86.923,86.827,22.29519779]
[1770478425962,21.50515167,86.922,86.827,22.29519779]
[1770478426559,75.92,87.01,86.759,34.75]
[1770478426560,21.50515167,86.962,86.806,22.29519779]
[1770478426759,21.50515167,86.987,86.844,22.29519779]
[1770478426957,21.50515167,86.945,86.848,22.29519779]
[1770478427661,21.50515167,86.944,86.848,22.29519779]
[1770478428359,2.00220357,86.994,86.848,22.29519779]
[1770478428360,21.50515167,86.933,86.848,22.29519779]
[1770478430757,21.50515167,86.929,86.848,22.29519779]
[1770478431157,21.50515167,86.929,86.804,22.29519779]
[1770478431363,2.00220357,86.994,86.804,22.29519779]
[1770478431364,21.50515167,86.912,86.804,22.29519779]
[1770478432158,21.50515167,86.905,86.78,22.29519779]
[1770478432465,21.50515167,86.904,86.78,22.29519779]
[1770478432668,21.50515167,86.888,86.78,22.29519779]
[1770478433363,21.50515167,86.886,86.78,22.29519779]
[1770478433761,21.50515167,86.849,86.78,22.29519779]
[1770478434371,14.02843167,86.935,86.78,22.29519779]
[1770478434670,161.1018,86.987,86.78,22.29519779]
[1770478434671,21.50515167,86.871,86.78,22.29519779]
[1770478434968,10.3725,86.853,86.78,22.29519779]
[1770478435167,21.50515167,86.852,86.78,22.29519779]
[1770478435570,10.3737,86.843,86.78,22.29519779]
[1770478437667,21.50515167,86.852,86.756,22.29519779]
[1770478438260,10.377,86.815,86.756,22.29519779]
[1770478438567,21.50515167,86.825,86.756,22.29519779]
[1770478438970,21.50515167,86.82,86.756,22.29519779]
[1770478440368,10.3756,86.827,86.756,22.29519779]
[1770478440672,10.3772,86.814,86.756,22.29519779]
[1770478441472,31.88235167,86.814,86.756,22.29519779]
[1770478441773,10.3788,86.8,86.703,10.3903]
[1770478441976,21.50515167,86.813,86.669,10.30387463]
[1770478442177,21.50515167,86.813,86.664,10.30387463]
[1770478442476,21.90888707,86.795,86.641,10.30387463]
[1770478442772,22.67324545,86.814,86.655,10.30387463]
[1770478442971,22.67324545,86.814,86.7,10.3907]
[1770478442972,10.3799,86.791,86.7,10.3907]
[1770478443373,22.67324545,86.807,86.654,462.25171766]
[1770478443568,10.383,86.765,86.684,10.3926]
[1770478443766,10.383,86.765,86.685,1.96387631]
[1770478444178,10.3812,86.78,86.689,1.96387631]
[1770478444477,161.4396,86.805,86.689,1.96387631]
[1770478444679,161.4687,86.79,86.689,1.96387631]
[1770478445066,22.19811149,86.789,86.689,1.96387631]
[1770478445275,10.385,86.749,86.689,1.96387631]
[1770478445680,22.19811149,86.771,86.689,1.96387631]
[1770478446580,21.17494989,86.875,86.654,451.9201117]
[1770478446581,22.71393418,86.843,86.735,2.98425928]
[1770478447577,22.71393418,86.843,86.753,3.43125122]
[1770478448183,10.3715,86.861,86.755,3.42756844]
[1770478448486,22.71393418,86.86,86.755,3.42756844]
[1770478448980,22.71393418,86.856,86.757,2.69457368]
[1770478450480,10.3724,86.854,86.757,2.69457368]
[1770478450680,22.71393418,86.856,86.757,2.69457368]
[1770478451077,22.36772968,86.843,86.757,2.69457368]
[1770478452182,22.36991019,86.863,86.776,3.07084458]
[1770478452385,22.36991019,86.926,86.776,3.07084458]
[1770478453181,22.39374331,86.901,86.811,3.08253088]
[1770478454482,22.39590059,86.899,86.791,3.13688715]
[1770478455089,22.48705442,86.892,86.791,3.13688715]
[1770478456697,22.48705442,86.892,86.769,2.9516339]
[1770478457288,22.57452721,86.864,86.769,2.9516339]
[1770478458691,22.70355473,86.862,86.769,2.9516339]
[1770478459690,22.70590503,86.86,86.769,2.9516339]
[1770478460793,22.70590503,86.86,86.74,10.3859]
[1770478460794,22.59049261,86.842,86.747,3.13995721]
[1770478461795,22.59265889,86.826,86.725,3.18911615]
[1770478462597,161.344,86.857,86.725,3.18911615]
[1770478462598,22.59265889,86.81,86.725,3.18911615]
[1770478464000,22.58984009,86.806,86.725,3.18911615]
[1770478464799,22.58984009,86.806,86.641,20.52912616]
[1770478464800,22.61809114,86.858,86.757,3.29506791]
[1770478466001,22.61809114,86.858,86.782,3.34196675]
[1770478466899,22.61809114,86.858,86.784,3.43990405]
[1770478467298,22.59645567,86.855,86.776,13.82150405]
[1770478467506,22.59645567,86.855,86.777,3.43990405]
[1770478467896,22.59645567,86.855,86.78,3.48578464]
[1770478469001,22.59645567,86.855,86.75,62.0]
[1770478469002,22.59645567,86.855,86.791,3.28356429]
[1770478469504,10.3693,86.88,86.75,62.0]
[1770478469505,22.72424826,86.879,86.798,3.33233371]
[1770478469800,22.72634051,86.877,86.798,3.33233371]
[1770478470399,10.3712,86.864,86.798,3.33233371]
[1770478470594,22.72634051,86.877,86.798,3.33233371]
[1770478471000,22.72414211,86.852,86.778,3.38075526]
[1770478471396,22.72414211,86.852,86.699,20.7816]
[1770478471397,22.72414211,86.852,86.732,10.36960125]
[1770478471602,22.7261824,86.877,86.751,3.38075526]
[1770478472004,22.7261824,86.845,86.751,3.38075526]
[1770478472701,22.7261824,86.831,86.751,3.38075526]
[1770478473599,22.38220134,86.829,86.751,3.38075526]
[1770478474202,22.38220134,86.826,86.751,3.38075526]
[1770478474701,22.46599185,86.815,86.751,3.38075526]
[1770478474903,22.46599185,86.815,86.729,4.08441869]
[1770478475299,22.46599185,86.836,86.744,4.08441869]
[1770478476109,23.18217186,86.833,86.745,10.3852]
[1770478476302,23.18217186,86.833,86.746,4.11737505]
[1770478476699,23.18217186,86.833,86.762,10.3833]
[1770478476902,23.18217186,86.833,86.763,4.07949211]
[1770478477408,23.18217186,86.833,86.766,14.46229211]
[1770478477608,23.18217186,86.833,86.744,4.12339712]
[1770478478502,23.18217186,86.831,86.749,4.12004327]
[1770478479400,23.18217186,86.826,86.749,4.12004327]
[1770478479803,14.18402101,86.864,86.749,4.12004327]
[1770478479804,23.18217186,86.814,86.749,4.12004327]
[1770478480011,23.18217186,86.814,86.702,4.27101528]
[1770478480910,23.18217186,86.791,86.702,4.27101528]
[1770478481806,23.18217186,86.777,86.702,4.27101528]
[1770478482213,23.18217186,86.777,86.655,4.44308651]
[1770478482508,23.18217186,86.774,86.69,4.44308651]
[1770478483102,23.18217186,86.759,86.677,10.3935]
[1770478483607,23.18217186,86.759,86.678,4.60742618]
[1770478484609,23.18217186,86.759,86.692,10.3916]
[1770478485714,23.18217186,86.759,86.678,4.60742618]
[1770478487806,23.18217186,86.756,86.678,4.60742618]
[1770478488307,23.18217186,86.742,86.66,4.91490621]
[1770478488916,23.18217186,86.742,86.669,4.89576188]
[1770478489613,23.18217186,86.742,86.673,4.93134059]
[1770478490616,23.18217186,86.74,86.655,4.96912311]
[1770478491221,23.18217186,86.737,86.655,4.96912311]
[1770478491827,23.18217186,86.735,86.655,4.96912311]
[1770478492622,23.18217186,86.729,86.655,4.96912311]
[1770478493725,23.18217186,86.728,86.657,5.08868702]
[1770478494531,10.388,86.723,86.66,5.08868702]
[1770478494726,23.18217186,86.722,86.66,5.08868702]
[1770478495635,23.18217186,86.722,86.642,5.30638711]
[1770478496236,10.392,86.69,86.642,5.30638711]
[1770478496534,23.18217186,86.689,86.617,5.33972869]
[1770478496835,10.3937,86.676,86.617,5.33972869]
[1770478497733,23.18217186,86.672,86.617,5.33972869]
[1770478497933,23.18217186,86.672,86.597,10.4031]
[1770478498134,10.3967,86.651,86.598,5.58060927]
[1770478498634,10.3967,86.651,86.581,439.2191522]
[1770478498635,23.18217186,86.65,86.581,439.2191522]
[1770478499336,23.18217186,86.644,86.581,439.2191522]
[1770478499925,23.18217186,86.63,86.544,5.5886971]
[1770478500329,23.18217186,86.63,86.52,5.5886971]
[1770478500635,23.18217186,86.624,86.554,5.6223575]
[1770478501029,23.18217186,86.624,86.568,6.66451255]
[1770478501933,10.4002,86.622,86.568,6.66451255]
[1770478502127,23.18217186,86.624,86.51,62.0]
[1770478502430,23.18217186,86.624,86.52,6.69639542]
[1770478502632,20.7877,86.675,86.51,62.0]
[1770478502633,23.18217186,86.612,86.536,6.72928701]
[1770478502940,161.6862,86.673,86.536,6.72928701]
[1770478502941,23.18217186,86.63,86.536,6.72928701]
[1770478503630,10.4014,86.611,86.539,6.61136044]
[1770478504233,10.4014,86.611,86.51,62.0]
[1770478504234,10.4,86.623,86.554,6.60990454]
[1770478504932,10.4,86.623,86.51,62.0]
[1770478504933,23.18217186,86.632,86.566,6.21753439]
[1770478508633,23.18217186,86.632,86.571,10.4062]
[1770478511245,23.18217186,86.632,86.571,17.05763675]
[1770478511739,23.18217186,86.632,86.584,10.4046]
[1770478511948,25.19397542,86.686,86.585,6.67897836]
[1770478512538,25.19397542,86.686,86.592,10.4037]
[1770478512734,25.19397542,86.686,86.511,34.75]
[1770478512735,25.19397542,86.686,86.593,6.83917131]
[1770478512945,25.19397542,86.686,86.608,10.4018]
[1770478513142,25.19397542,86.686,86.609,6.83917131]
[1770478514136,25.19397542,86.686,86.591,6.86615846]
[1770478514338,10.3932,86.68,86.591,6.86615846]
[1770478514543,25.19397542,86.679,86.591,6.86615846]
[1770478514748,25.19397542,86.679,86.581,7.28296532]
[1770478515747,25.19397542,86.679,86.595,7.31065991]
[1770478516246,25.19397542,86.679,86.575,7.3095497]
[1770478516640,25.19397542,86.664,86.578,17.98391317]
[1770478516838,25.19397542,86.664,86.579,7.57851317]
[1770478517449,25.19397542,86.661,86.557,7.57851317]
[1770478518254,25.19397542,86.657,86.567,10.4067]
[1770478519251,25.19397542,86.65,86.557,7.57851317]
[1770478520047,25.19397542,86.65,86.57,7.83379852]
[1770478521351,25.19397542,86.65,86.591,10.4038]
[1770478522051,25.19397542,86.65,86.601,10.4026]
[1770478523152,25.19397542,86.65,86.592,7.77499859]
[1770478523845,25.19397542,86.65,86.593,7.69904654]
[1770478524147,25.19397542,86.726,86.593,7.69904654]
[1770478524346,25.19397542,86.726,86.616,10.4008]
[1770478524542,25.19397542,86.726,86.616,18.09984654]
[1770478524744,25.19397542,86.692,86.616,18.09984654]
[1770478525656,25.19397542,86.692,86.577,20.8108]
[1770478525657,25.19397542,86.685,86.621,10.4002]
[1770478526044,25.19397542,86.685,86.617,7.82670478]
[1770478526249,25.19397542,86.685,86.63,10.3991]
[1770478527146,25.19397542,86.673,86.558,7.92484248]
[1770478527357,25.19397542,86.673,86.576,7.92484248]
[1770478528047,25.19397542,86.673,86.637,10.3982]
[1770478528250,25.19397542,86.698,86.637,10.3982]
[1770478528453,25.19397542,86.698,86.637,7.94814768]
[1770478528858,25.19397542,86.719,86.652,10.3964]
[1770478529053,25.19397542,86.719,86.596,20.8064]
[1770478529054,25.19397542,86.719,86.653,7.89106684]
[1770478529861,25.19397542,86.719,86.632,7.9138027]
[1770478530654,25.19397542,86.708,86.643,10.3975]
[1770478531053,25.19397542,86.708,86.632,7.9138027]
[1770478531454,25.19397542,86.708,86.559,13.78729026]
[1770478531455,25.19397542,86.704,86.614,8.11275212]
[1770478532155,25.19397542,86.704,86.546,13.78729026]
[1770478532156,25.19397542,86.676,86.57,8.13504837]
[1770478532661,25.19397542,86.663,86.6,10.4027]
[1770478534259,25.19397542,86.663,86.609,10.4017]
[1770478534861,25.19397542,86.663,86.598,10.403]
[1770478535064,25.19397542,86.682,86.599,8.37771388]
[1770478535563,25.19397542,86.7,86.639,8.37771388]
[1770478536956,25.19397542,86.7,86.641,10.3977]
[1770478537163,25.19397542,86.7,86.639,8.37771388]
[1770478538865,25.19397542,86.7,86.649,10.3968]
[1770478540362,25.19397542,86.7,86.59,161.839]
[1770478540363,25.19397542,86.7,86.637,10.3983]
[1770478540767,24.27212195,86.717,86.638,8.26634831]
[1770478540961,24.27212195,86.717,86.597,161.8263]
[1770478540962,24.27212195,86.717,86.655,10.3961]
[1770478541161,24.27212195,86.717,86.654,8.26634831]
[1770478543165,24.27212195,86.717,86.609,8.33102811]
[1770478543362,24.27212195,86.713,86.629,8.33102811]
[1770478543961,24.27212195,86.713,86.658,10.3957]
[1770478545668,24.27212195,86.713,86.649,8.4436801]
[1770478546370,24.27212195,86.713,86.664,10.395]
[1770478547272,24.27212195,86.708,86.609,8.50132713]
[1770478547669,24.27212195,86.706,86.638,10.3981]
[1770478547872,24.27212195,86.706,86.627,8.51966338]
[1770478548370,24.27212195,86.702,86.646,10.3972]
[1770478549162,24.27212195,86.702,86.637,10.3982]
[1770478549564,10.3915,86.694,86.637,10.3982]
[1770478549766,24.27212195,86.693,86.61,8.80993835]
[1770478550770,48.85402101,86.725,86.61,8.80993835]
[1770478550771,24.27212195,86.683,86.624,10.3998]
[1770478551568,24.27212195,86.681,86.566,10.42181234]
[1770478551871,24.27212195,86.681,86.59,8.63342489]
[1770478552071,24.27212195,86.67,86.6,10.4026]
[1770478552470,24.27212195,86.67,86.59,8.63342489]
[1770478552670,24.27212195,86.667,86.6,10.4027]
[1770478553272,24.27212195,86.665,86.6,10.4027]
[1770478554973,24.27212195,86.665,86.59,8.63342489]
[1770478555474,24.27212195,86.665,86.619,10.4004]
[1770478557374,24.27212195,86.665,86.632,10.3988]
[1770478558875,24.27212195,86.682,86.641,10.3978]
[1770478559076,24.27212195,86.682,86.58,20.8103]
[1770478559077,24.27212195,86.682,86.624,8.72699491]
[1770478560377,24.27212195,86.682,86.606,8.74296362]
[1770478560682,24.27212195,86.682,86.58,20.8103]
[1770478560683,24.27212195,86.682,86.581,8.75923663]
[1770478561775,24.27212195,86.678,86.613,10.4011]
[1770478561977,24.27212195,86.678,86.565,8.70215641]
[1770478562177,28.27186287,86.725,86.565,8.70215641]
[1770478562178,24.27212195,86.661,86.565,8.70215641]
[1770478562379,24.27212195,86.643,86.528,10.42181234]
[1770478562578,24.27212195,86.643,86.548,8.70215641]
[1770478562779,24.27212195,86.638,86.536,8.76577913]
[1770478562984,34.67,86.672,86.536,8.76577913]
[1770478562985,24.27212195,86.631,86.551,10.4085]
[1770478563182,34.67,86.672,86.536,8.76577913]
[1770478563183,24.27212195,86.626,86.536,8.76577913]
[1770478563690,24.27212195,86.614,86.518,8.78101941]
[1770478564684,24.27212195,86.601,86.5,8.79655756]
[1770478565192,24.27212195,86.588,86.478,8.60180409]
[1770478565791,24.27212195,86.556,86.478,8.60180409]
[1770478565995,24.27212195,86.556,86.451,8.68144372]
[1770478566383,25.12584006,86.542,86.463,10.4191]
[1770478567090,25.12584006,86.538,86.451,8.68144372]
[1770478567291,25.12584006,86.538,86.45,452.82578851]
[1770478567882,25.12584006,86.524,86.45,452.82578851]
[1770478568095,25.12584006,86.524,86.433,8.38147364]
[1770478568500,25.12584006,86.511,86.433,8.38147364]
[1770478568692,25.12584006,86.511,86.415,8.55179145]
[1770478568997,25.12584006,86.511,86.329,13.78729026]
[1770478568998,25.12584006,86.511,86.397,8.55179145]
[1770478569299,25.12584006,86.507,86.411,10.4254]
[1770478569595,25.12584006,86.507,86.412,8.55179145]
[1770478570497,25.12584006,86.5,86.412,8.55179145]
[1770478570893,24.54986233,86.497,86.413,10.4252]
[1770478571191,24.54986233,86.497,86.414,8.6359713]
[1770478571892,24.54986233,86.497,86.432,10.4228]
[1770478572797,24.54986233,86.515,86.441,8.47013113]
[1770478573695,24.54986233,86.515,86.454,10.4202]
[1770478574193,24.54986233,86.515,86.441,8.47013113]
[1770478574400,24.54986233,86.515,86.445,8.48327504]
[1770478575294,24.54986233,86.515,86.449,8.16684196]
[1770478576792,24.54986233,86.515,86.455,8.27622477]
[1770478578594,24.54986233,86.515,86.456,10.42]
[1770478578789,24.54986233,86.515,86.411,8.48615804]
[1770478579795,24.54986233,86.515,86.442,10.4216]
[1770478581903,24.54986233,86.512,86.434,8.49840683]
[1770478582800,24.54986233,86.51,86.411,8.41192435]
[1770478583494,24.54986233,86.505,86.433,10.4228]
[1770478583695,24.54986233,86.505,86.41,1.55997511]
[1770478583696,24.54986233,86.505,86.434,8.42359125]
[1770478584095,24.54986233,86.493,86.411,8.42359125]
[1770478585400,24.54986233,86.548,86.426,7.3484926]
[1770478585805,24.54986233,86.546,86.426,7.3484926]
[1770478586003,24.54986233,86.536,86.426,7.3484926]
[1770478586502,24.54986233,86.511,86.436,10.4224]
[1770478587502,24.54986233,86.511,86.446,10.4212]
[1770478588905,24.54986233,86.511,86.41,1.55997511]